lending/lending_fUSD_20250917
["ID","MTS","AMOUNT","RATE_DAILY","PERIOD"]
[385886183,1758095433733,-273.09929612,0.00026502,2]
[385886184,1758095433742,-1000.0,0.00026502,2]
[385886185,1758095433752,-151.0,0.00026502,2]
[385886186,1758095433762,-3455.62083504,0.00026502,2]
[385886187,1758095433774,-5427.06767976,0.00026502,2]
[385886188,1758095433783,-1000.0,0.00026502,2]
[385886189,1758095433792,-151.0,0.00026502,2]
[385886190,1758095433802,-1000.0,0.00026502,2]
[385886191,1758095433811,-151.0,0.00026502,2]
[385886192,1758095433821,-151.0,0.00026502,2]
[385886193,1758095433830,-1000.0,0.00026502,2]
[385886194,1758095433840,-151.0,0.00026502,2]
[385886195,1758095433850,-1000.0,0.00026502,2]
[385886196,1758095433859,-1000.0,0.00026502,2]
[385886197,1758095433868,-3000.0,0.00026502,2]
[385886198,1758095433878,-1000.0,0.00026502,2]
[385886199,1758095433887,-151.0,0.00026502,2]
[385886200,1758095433897,-1000.0,0.00026502,2]
[385886201,1758095433907,-151.0,0.00026502,2]
[385886202,1758095433917,-1000.0,0.00026502,2]
[385886203,1758095433926,-151.0,0.00026502,2]
[385886204,1758095433935,-2477.99345451,0.00026502,2]
[385886205,1758095433945,-574.7968529,0.00026502,2]
[385886206,1758095433954,-151.0,0.00026502,2]
[385886207,1758095433964,-500.0,0.00026502,2]
[385886208,1758095433973,-500.0,0.00026502,2]
[385886209,1758095433983,-500.0,0.00026502,2]
[385886210,1758095433992,-151.0,0.00026502,2]
[385886211,1758095434001,-500.0,0.00026502,2]
[385886212,1758095434010,-1000.0,0.00026502,2]
[385886213,1758095434019,-500.0,0.00026502,2]
[385886214,1758095434028,-1000.0,0.00026502,2]
[385886215,1758095434038,-500.0,0.00026502,2]
[385886216,1758095434047,-544.49409494,0.00026502,2]
[385886217,1758095434063,-455.50590506,0.00026502,2]
[385886218,1758095434072,-500.0,0.00026502,2]
[385886219,1758095434081,-1000.0,0.00026502,2]
[385886220,1758095434091,-670.58624095,0.00026502,2]
[385886221,1758095434100,-500.0,0.00026502,2]
[385886222,1758095434110,-151.0,0.00026502,2]
[385886223,1758095434120,-1000.0,0.00026502,2]
[385886224,1758095434129,-1000.0,0.00026502,2]
[385886225,1758095434139,-500.0,0.00026502,2]
[385886226,1758095434148,-350.12762982,0.00026502,2]
[385886227,1758095434160,-649.87237018,0.00026502,2]
[385886228,1758095434170,-500.0,0.00026502,2]
[385886229,1758095434179,-1000.0,0.00026502,2]
[385886230,1758095434189,-31.40862782,0.00026502,2]
[385886231,1758095434201,-468.59137218,0.00026502,2]
[385886232,1758095434210,-352.99866572,0.00026502,2]
[385886233,1758095434222,-147.00133428,0.00026502,2]
[385886234,1758095434231,-266.53302619,0.00026502,2]
[385886235,1758095434262,-733.46697381,0.00026502,2]
[385886236,1758095434272,-500.0,0.00026502,2]
[385886237,1758095434282,-10.28852536,0.00026502,2]
[385886238,1758095434293,-489.71147464,0.00026502,2]
[385886239,1758095434302,-105.21852545,0.00026502,2]
[385886240,1758095434318,-894.78147455,0.00026502,2]
[385886241,1758095434328,-500.0,0.00026502,2]
[385886242,1758095434337,-1000.0,0.00026502,2]
[385886243,1758095434346,-1000.0,0.00026502,2]
[385886244,1758095434356,-1000.0,0.00026502,2]
[385886245,1758095434366,-151.0,0.00026502,2]
[385886246,1758095434375,-59.86441562,0.00026502,2]
[385886247,1758095434386,-91.13558438,0.00026502,2]
[385886248,1758095434396,-205.17427509,0.00026502,2]
[385886249,1758095434406,-151.0,0.00026502,2]
[385886250,1758095434415,-151.0,0.00026502,2]
[385886251,1758095434424,-500.0,0.00026502,2]
[385886252,1758095434434,-151.0,0.00026502,2]
[385886253,1758095434444,-500.0,0.00026502,2]
[385886254,1758095434454,-151.0,0.00026502,2]
[385886255,1758095434464,-322.6107,0.00026502,2]
[385886256,1758095434474,-384.62015689,0.00026502,2]
[385886257,1758095434486,-115.37984311,0.00026502,2]
[385886258,1758095434495,-151.0,0.00026502,2]
[385886259,1758095434504,-500.0,0.00026502,2]
[385886260,1758095434514,-151.0,0.00026502,2]
[385886261,1758095434523,-151.0,0.00026502,2]
[385886262,1758095434533,-154.59056815,0.00026502,2]
[385886263,1758095434572,-345.40943185,0.00026502,2]
[385886264,1758095434581,-151.0,0.00026502,2]
[385886265,1758095434590,-191.81389276,0.00026502,2]
[385886268,1758095437746,-308.18610724,0.00026502,2]
[385886269,1758095437755,-151.0,0.00026502,2]
[385886270,1758095437764,-500.0,0.00026502,2]
[385886271,1758095437774,-151.0,0.00026502,2]
[385886272,1758095437783,-500.0,0.00026502,2]
[385886273,1758095437792,-151.0,0.00026502,2]
[385886274,1758095437801,-500.0,0.00026502,2]
[385886275,1758095437810,-151.0,0.00026502,2]
[385886276,1758095437819,-500.0,0.00026502,2]
[385886277,1758095437829,-500.0,0.00026502,2]
[385886278,1758095437838,-500.0,0.00026502,2]
[385886279,1758095437848,-500.0,0.00026502,2]
[385886280,1758095437857,-500.0,0.00026502,2]
[385886281,1758095437867,-307.27899619,0.00026502,2]
[385886282,1758095437879,-192.72100381,0.00026502,2]
[385886283,1758095437889,-500.0,0.00026502,2]
[385886284,1758095437898,-500.0,0.00026502,2]
[385886285,1758095437907,-500.0,0.00026502,2]
[385886286,1758095437916,-500.0,0.00026502,2]
[385886287,1758095437925,-500.0,0.00026502,2]
[385886288,1758095437935,-500.0,0.00026502,2]
[385886289,1758095437944,-500.0,0.00026502,2]
[385886290,1758095437954,-151.0,0.00026502,2]
[385886291,1758095437963,-500.0,0.00026502,2]
[385886292,1758095437972,-500.0,0.00026502,2]
[385886293,1758095437981,-500.0,0.00026502,2]
[385886294,1758095437991,-500.0,0.00026502,2]
[385886295,1758095438000,-500.0,0.00026502,2]
[385886296,1758095438009,-500.0,0.00026502,2]
[385886297,1758095438019,-500.0,0.00026502,2]
[385886298,1758095438028,-147.54973166,0.00026502,2]
[385886299,1758095438040,-352.45026834,0.00026502,2]
[385886300,1758095438049,-200.75973166,0.00026502,2]
[385886301,1758095438068,-299.24026834,0.00026502,2]
[385886302,1758095438077,-500.0,0.00026502,2]
[385886303,1758095438086,-500.0,0.00026502,2]
[385886304,1758095438096,-14.61671033,0.00026502,2]
[385886305,1758095438107,-485.38328967,0.00026502,2]
[385886307,1758095438116,-500.0,0.00026502,2]
[385886309,1758095438125,-500.0,0.00026502,2]
[385886311,1758095438135,-500.0,0.00026502,2]
[385886313,1758095438144,-151.0,0.00026502,2]
[385886315,1758095438153,-151.0,0.00026502,2]
[385886317,1758095438163,-670.3876499,0.00026529,2]
[385886319,1758095438172,-226.0,0.00026547,2]
[385886321,1758095438182,-216.0,0.00026551,2]
[385886323,1758095438191,-255.94149884,0.00026556,2]
[385886325,1758095438200,-306.84505935,0.00026557,2]
[385886327,1758095438211,-4169.96916336,0.00026557,2]
[385886329,1758095438222,-1210.62000425,0.00026557,2]
[385886331,1758095438233,-3158.92017496,0.00026557,2]
[385886334,1758095438245,-364.99358793,0.00026557,2]
[385886336,1758095438254,-156.587,0.00026557,2]
[385886338,1758095438263,-2830.84899794,0.00026565,2]
[385886340,1758095438272,-265.0,0.00026578,2]
[385886342,1758095438281,-566.72659513,0.00026578,2]
[385886345,1758095438301,-365.87340487,0.00026578,2]
[385886347,1758095438310,-317.75,0.00026578,2]
[385886349,1758095438319,-170.38351176,0.00026578,2]
[385886351,1758095438334,-1603.75466093,0.00026578,2]
[385886423,1758095439789,-609.88182731,0.00026578,2]
[385886424,1758095439799,-150.0,0.00026578,2]
[385886425,1758095439808,-150.0,0.00026578,2]
[385886426,1758095439817,-167.07,0.00026578,2]
[385886427,1758095439826,-140.4667963,0.00026578,2]
[385886428,1758095439837,-34.3632037,0.00026578,2]
[385886429,1758095439847,-234.75,0.00026578,2]
[385886430,1758095439857,-543.25,0.00026578,2]
[385886431,1758095439866,-265.0,0.00026599,7]
[385886432,1758095439875,-500.0,0.000266,2]
[385886433,1758095439884,-179.57,0.00026602,2]
[385886434,1758095439893,-3608.07027333,0.00026612,2]
[385886435,1758095439966,-280.80583378,0.00026612,2]
[385886436,1758095440028,-259.75918832,0.00026612,2]
[385886437,1758095440091,-2493.44992,0.00026612,2]
[385886438,1758095440102,-2910.08265004,0.00026612,2]
[385886439,1758095440112,-162.380719,0.00026612,2]
[385886440,1758095440121,-226.0,0.00026665,7]
[385886441,1758095440131,-385.25217096,0.00026667,2]
[385886447,1758095442786,-500.0,0.00025561,2]
[385886448,1758095442795,-529.2693982,0.00025561,2]
[385886449,1758095442805,-500.0,0.00025561,2]
[385886450,1758095442815,-9520.34590554,0.00026667,2]
[385886451,1758095442825,-168.3888056,0.00026667,2]
[385886452,1758095442834,-2447.78672787,0.0002671,2]
[385886453,1758095442844,-3635.20916281,0.00026722,2]
[385886465,1758095445732,-6636.89604252,0.00026722,2]
[385886466,1758095445742,-174.61919141,0.00026722,2]
[385886467,1758095445751,-177.09,0.00026736,2]
[385886468,1758095445760,-181.0,0.00026765,2]
[385886469,1758095445769,-420.0,0.00026773,2]
[385886470,1758095445779,-420.0,0.00026773,2]
[385886471,1758095445788,-9011.68790968,0.00026777,2]
[385886472,1758095445992,-1640.48518824,0.00026777,2]
[385886473,1758095446003,-181.08010149,0.00026777,2]
[385886474,1758095446013,-11046.30350255,0.00026832,2]
[385886475,1758095446023,-187.78006525,0.00026832,2]
[385886476,1758095446033,-2758.28503118,0.00026847,2]
[385886477,1758095446058,-429.95336882,0.00026847,2]
[385886478,1758095446073,-1947.4145,0.00026847,2]
[385886479,1758095446082,-919.04330116,0.00026847,2]
[385886480,1758095446094,-401.86309456,0.00026847,2]
[385886513,1758096298284,172.25,0.00012858,2]
[385886514,1758096298340,172.25,0.00019287,2]
[385886520,1758096523963,200.0,0.00019504,2]
[385886534,1758096632149,-450.0,0.00022,2]
[385886535,1758096632233,-459.18544646,0.00022,2]
[385886536,1758096632245,-1140.38500553,0.00022,2]
[385886537,1758096632256,-148.42954801,0.00022,2]
[385886538,1758096632265,-416.10965188,0.000221,5]
[385886539,1758096632277,-531.89034812,0.000221,5]
[385886540,1758096632287,-200.0,0.00024176,2]
[385886541,1758096632296,-78.5968217,0.00024469,2]
[385886542,1758096632451,-215.5731783,0.00024469,2]
[385886543,1758096632460,-150.0,0.00024633,2]
[385886544,1758096632470,-173.23,0.00024658,2]
[385886545,1758096632479,-300.0,0.00024898,2]
[385886546,1758096632489,-1200.0,0.00024898,2]
[385886547,1758096632498,-500.0,0.00024899,2]
[385886548,1758096632507,-11002.29811665,0.000249,2]
[385886706,1758096637990,-1406.16,0.000249,2]
[385886707,1758096638001,-956.08382737,0.000249,2]
[385886708,1758096638012,-703.08820863,0.000249,2]
[385886793,1758096640867,-5118.23704615,0.000249,2]
[385886794,1758096640878,-168.98,0.00025245,2]
[385886795,1758096640888,-150.0,0.00025272,7]
[385886796,1758096640897,-1609.26,0.00025425,2]
[385886797,1758096640906,-543.25,0.00025562,2]
[385886798,1758096640916,-174.96,0.00025629,2]
[385886799,1758096640925,-172.25,0.00025717,2]
[385886800,1758096640934,-214.17,0.00025717,2]
[385886801,1758096640944,-161.87,0.0002573,2]
[385886802,1758096640953,-326.20410933,0.00025775,2]
[385886803,1758096640963,-69820.97776597,0.00025776,2]
[385886804,1758096640973,-255.0,0.00025785,2]
[385886805,1758096640982,-2695.94,0.00025786,2]
[385886806,1758096640992,-6464.65,0.00025786,2]
[385886807,1758096641002,-29999.99,0.00025786,2]
[385886808,1758096641011,-170.71,0.00025894,2]
[385886809,1758096641021,-200.0,0.00025955,2]
[385886810,1758096641030,-600.0,0.00025984,2]
[385886811,1758096641040,-500.0,0.00025984,2]
[385886812,1758096641049,-500.0,0.00025984,2]
[385886813,1758096641059,-500.0,0.00025984,2]
[385886814,1758096641069,-500.0,0.00025984,2]
[385886815,1758096641078,-358.88754841,0.00025984,2]
[385886816,1758096641088,-200.0,0.00025984,2]
[385886817,1758096641098,-155.02238158,0.00025984,2]
[385886818,1758096641107,-151.0,0.00025984,2]
[385886819,1758096641117,-151.0,0.00025984,2]
[385886820,1758096641126,-189.53267792,0.00025984,2]
[385886821,1758096641136,-151.0,0.00025984,2]
[385886822,1758096641145,-151.0,0.00025984,2]
[385886823,1758096641155,-200.0,0.00025984,2]
[385886824,1758096641164,-500.0,0.00025984,2]
[385886825,1758096641174,-151.0,0.00025984,2]
[385886826,1758096641184,-500.0,0.00025984,2]
[385886827,1758096641194,-151.0,0.00025984,2]
[385886828,1758096641204,-500.0,0.00025984,2]
[385886829,1758096641215,-151.0,0.00025984,2]
[385886830,1758096641224,-500.0,0.00025984,2]
[385886831,1758096641234,-151.0,0.00025984,2]
[385886832,1758096641244,-151.0,0.00025984,2]
[385886833,1758096641254,-151.0,0.00025984,2]
[385886834,1758096641264,-151.0,0.00025984,2]
[385886835,1758096641274,-151.0,0.00025984,2]
[385886836,1758096641283,-151.0,0.00025984,2]
[385886837,1758096641293,-151.0,0.00025984,2]
[385886838,1758096641302,-151.0,0.00025984,2]
[385886839,1758096641312,-179.15904919,0.00025999,2]
[385886840,1758096641322,-50000.0,0.00026,2]
[385886841,1758096641331,-441.0,0.00026,2]
[385886842,1758096641341,-179.57,0.00026058,2]
[385886843,1758096641351,-277.3121,0.00026058,2]
[385886844,1758096641360,-5336.04210693,0.00026068,2]
[385886845,1758096641370,-535.33,0.00026082,2]
[385886846,1758096641379,-151.0,0.00026103,2]
[385886847,1758096641389,-160.0,0.00026103,2]
[385886848,1758096641400,-151.0,0.00026103,2]
[385886849,1758096641410,-500.0,0.00026103,2]
[385886850,1758096641419,-500.0,0.00026103,2]
[385886851,1758096641430,-151.0,0.00026103,2]
[385886852,1758096641438,-257.91778498,0.00026103,2]
[385886853,1758096641447,-500.0,0.00026103,2]
[385886854,1758096641456,-670.58624095,0.00026103,2]
[385886855,1758096641464,-500.0,0.00026103,2]
[385886856,1758096641474,-500.0,0.00026103,2]
[385886857,1758096641483,-500.0,0.00026103,2]
[385886858,1758096641492,-500.0,0.00026103,2]
[385886859,1758096641502,-500.0,0.00026103,2]
[385886860,1758096641511,-500.0,0.00026103,2]
[385886861,1758096641521,-500.0,0.00026103,2]
[385886862,1758096641531,-500.0,0.00026103,2]
[385886863,1758096641541,-500.0,0.00026103,2]
[385886864,1758096641550,-8882.6885148,0.00026103,2]
[385886865,1758096641560,-500.0,0.00026103,2]
[385886866,1758096641570,-1000.0,0.00026103,2]
[385886867,1758096641579,-151.0,0.00026103,2]
[385886868,1758096641589,-1000.0,0.00026103,2]
[385886869,1758096641598,-151.0,0.00026103,2]
[385886870,1758096641608,-1000.0,0.00026103,2]
[385886871,1758096641620,-151.0,0.00026103,2]
[385886872,1758096641630,-151.0,0.00026103,2]
[385886873,1758096641640,-1000.0,0.00026103,2]
[385886874,1758096641650,-151.0,0.00026103,2]
[385886875,1758096641659,-1000.0,0.00026103,2]
[385886876,1758096641669,-500.0,0.00026103,2]
[385886877,1758096641678,-174.63766211,0.00026103,2]
[385886878,1758096641686,-1000.0,0.00026103,2]
[385886879,1758096641696,-500.0,0.00026103,2]
[385886880,1758096641705,-1000.0,0.00026103,2]
[385886881,1758096641715,-151.0,0.00026103,2]
[385886882,1758096641725,-500.0,0.00026103,2]
[385886883,1758096641735,-1000.0,0.00026103,2]
[385886884,1758096641744,-500.0,0.00026103,2]
[385886885,1758096641754,-1000.0,0.00026103,2]
[385886886,1758096641764,-500.0,0.00026103,2]
[385886887,1758096641774,-624.04173661,0.00026103,2]
[385886888,1758096641783,-500.0,0.00026103,2]
[385886889,1758096641793,-151.0,0.00026103,2]
[385886890,1758096641803,-500.0,0.00026103,2]
[385886891,1758096641812,-151.0,0.00026103,2]
[385886892,1758096641823,-151.0,0.00026103,2]
[385886893,1758096641834,-163.75228209,0.00026103,2]
[385886894,1758096641844,-151.0,0.00026103,2]
[385886895,1758096641853,-151.0,0.00026103,2]
[385886896,1758096641863,-151.0,0.00026103,2]
[385886897,1758096641873,-151.0,0.00026103,2]
[385886898,1758096641882,-500.0,0.00026103,2]
[385886899,1758096641892,-151.0,0.00026103,2]
[385886900,1758096641901,-151.0,0.00026103,2]
[385886901,1758096641911,-151.0,0.00026103,2]
[385886902,1758096641921,-500.0,0.00026103,2]
[385886903,1758096641930,-151.0,0.00026103,2]
[385886904,1758096641940,-151.0,0.00026103,2]
[385886905,1758096641949,-500.0,0.00026103,2]
[385886906,1758096641959,-500.0,0.00026103,2]
[385886907,1758096641969,-151.0,0.00026103,2]
[385886908,1758096641979,-151.0,0.00026103,2]
[385886909,1758096641988,-500.0,0.00026103,2]
[385886910,1758096641998,-151.0,0.00026103,2]
[385886911,1758096642007,-500.0,0.00026103,2]
[385886912,1758096642017,-151.0,0.00026103,2]
[385886913,1758096642026,-500.0,0.00026103,2]
[385886914,1758096642036,-1000.0,0.00026103,2]
[385886915,1758096642046,-500.0,0.00026103,2]
[385886916,1758096642056,-1000.0,0.00026103,2]
[385886917,1758096642066,-500.0,0.00026103,2]
[385886918,1758096642075,-1000.0,0.00026103,2]
[385886919,1758096642084,-500.0,0.00026103,2]
[385886920,1758096642094,-1000.0,0.00026103,2]
[385886921,1758096642103,-500.0,0.00026103,2]
[385886922,1758096642113,-1000.0,0.00026103,2]
[385886923,1758096642123,-500.0,0.00026103,2]
[385886924,1758096642133,-500.0,0.00026103,2]
[385886925,1758096642143,-1000.0,0.00026103,2]
[385886926,1758096642152,-1000.0,0.00026103,2]
[385886927,1758096642162,-1000.0,0.00026103,2]
[385886928,1758096642172,-1000.0,0.00026103,2]
[385886929,1758096642181,-1000.0,0.00026103,2]
[385886930,1758096642191,-1000.0,0.00026103,2]
[385886931,1758096642200,-1000.0,0.00026103,2]
[385886932,1758096642210,-1000.0,0.00026103,2]
[385886933,1758096642219,-322.6107,0.00026103,2]
[385886934,1758096642229,-500.0,0.00026103,2]
[385886935,1758096642238,-500.0,0.00026103,2]
[385886936,1758096642248,-500.0,0.00026103,2]
[385886937,1758096642258,-289.07184796,0.00026103,2]
[385886938,1758096642268,-168.0,0.00026108,2]
[385886939,1758096642278,-17539.80717745,0.00026158,2]
[385886940,1758096642288,-269203.86201976,0.00026158,3]
[385886942,1758096643205,-17400.70668266,0.00026158,3]
[385886943,1758096643218,-692.34431353,0.00026158,3]
[385886944,1758096643260,-16958.9766109,0.00026158,3]
[385886945,1758096643552,-185774.54240977,0.00026158,3]
[385886946,1758096643565,-156.587,0.00026158,2]
[385886947,1758096643575,-9211.34798985,0.00026158,2]
[385886948,1758096643585,-5658.4381,0.00026168,2]
[385886949,1758096643595,-232.2771,0.00026168,2]
[385886950,1758096643604,-150.0,0.00026186,2]
[385886951,1758096643614,-256.96206795,0.00026188,2]
[385886953,1758096643625,-327.50067484,0.0002619,2]
[385886954,1758096643635,-398.03928172,0.00026192,2]
[385886955,1758096643644,-468.57788861,0.00026194,2]
[385886956,1758096643654,-539.1164955,0.00026195,2]
[385886957,1758096643664,-609.65510239,0.00026197,2]
[385886958,1758096643674,-680.19370927,0.00026199,2]
[385886959,1758096643684,-750.73231616,0.00026201,2]
[385886960,1758096643694,-179.57,0.00026203,2]
[385886961,1758096643704,-179.57,0.00026203,2]
[385886962,1758096643714,-821.27092304,0.00026203,2]
[385886963,1758096643723,-535.09,0.0002621,2]
[385886964,1758096643733,-160.0,0.00026213,3]
[385886965,1758096643744,-162.380719,0.00026213,2]
[385886966,1758096643754,-9552.16786547,0.00026213,2]
[385886967,1758096643764,-1186.69017984,0.00026246,2]
[385886968,1758096643774,-5336.04210689,0.00026265,2]
[385886969,1758096643784,-168.3888056,0.00026268,2]
[385886970,1758096643794,-9905.5980765,0.00026268,2]
[385886971,1758096643805,-500.0,0.00026273,2]
[385886972,1758096643815,-543.25,0.00026278,2]
[385886974,1758096643825,-1000.0,0.000263,2]
[385886975,1758096643836,-558.0,0.00026319,2]
[385886976,1758096644132,-174.61919141,0.00026323,2]
[385886977,1758096644159,-10272.10520533,0.00026323,2]
[385886978,1758096644169,-181.08010149,0.00026378,2]
[385886979,1758096644178,-10652.17309792,0.00026378,2]
[385886980,1758096644187,-1887.2326653,0.00026381,2]
[385886981,1758096644197,-1000.0,0.000264,2]
[385886982,1758096644207,-1000.0,0.000264,2]
[385886983,1758096644216,-1000.0,0.000264,2]
[385886984,1758096644226,-293.784216,0.00026433,2]
[385886985,1758096644236,-1683.97169983,0.00026433,2]
[385886986,1758096644245,-5336.04210689,0.00026463,2]
[385886987,1758096644254,-811.94560689,0.00026466,2]
[385886988,1758096644264,-400.0,0.000265,9]
[385886989,1758096644273,-600.0,0.00026532,2]
[385886990,1758096644283,-7117.5104078,0.00026572,2]
[385886991,1758096644292,-161.49884539,0.00026572,2]
[385886992,1758096644301,-7000.0,0.0002658,2]
[385886993,1758096644311,-601.05953408,0.00026582,2]
[385886994,1758096644320,-4385.16648495,0.00026591,2]
[385886995,1758096644330,-999.99,0.00026591,2]
[385886996,1758096644339,-3527.68,0.00026591,2]
[385886997,1758096644348,-2397.32,0.00026591,2]
[385886998,1758096644358,-9999.99,0.00026591,2]
[385886999,1758096644367,-299.99,0.00026591,12]
[385887000,1758096644376,-150.99,0.00026591,2]
[385887001,1758096644386,-9999.99,0.00026591,2]
[385887002,1758096644395,-800.0,0.000266,9]
[385887003,1758096644405,-543.0,0.000266,2]
[385887004,1758096644415,-151.0,0.00026651,2]
[385887005,1758096644424,-151.0,0.00026651,2]
[385887006,1758096644434,-151.0,0.00026651,2]
[385887007,1758096644443,-228.26715187,0.00026651,2]
[385887008,1758096644453,-151.0,0.00026651,2]
[385887009,1758096644462,-5336.04210689,0.0002666,2]
[385887010,1758096644473,-249.72230202,0.00026662,2]
[385887011,1758096644482,-151.57,0.00026663,2]
[385887012,1758096644492,-218394.507918,0.00026672,2]
[385887013,1758096644501,-47472.3295796,0.00026672,2]
[385887014,1758096644511,-18199.5423265,0.00026672,2]
[385887015,1758096644520,-3651.71765997,0.00026672,2]
[385887016,1758096644529,-264.539589,0.00026672,7]
[385887017,1758096644539,-151.0,0.00026672,7]
[385887018,1758096644549,-151.0,0.00026672,7]
[385887019,1758096644558,-151.0,0.00026672,7]
[385887020,1758096644567,-214.025341,0.00026672,7]
[385887021,1758096644577,-156.697302,0.00026672,7]
[385887022,1758096644586,-151.0,0.00026672,7]
[385887023,1758096644595,-3651.71765997,0.00026672,2]
[385887024,1758096644605,-506.53762303,0.00026673,2]
[385887025,1758096644619,-503.04302494,0.00026673,2]
[385887026,1758096644628,-553.97279904,0.00026673,2]
[385887027,1758096644638,-500.0,0.00026673,2]
[385887028,1758096644647,-500.0,0.00026673,2]
[385887029,1758096644657,-8308.26312366,0.00026673,2]
[385887053,1758097462041,157.17,0.00012619,2]
[385887054,1758097462239,157.17,0.00015774,2]
[385887055,1758097462441,157.17,0.00018929,2]
[385887061,1758097636045,336.0,0.0003,120]
[385887063,1758097684663,5000.0,0.00021,5]
[385887081,1758097832288,-300.0,0.00020999,2]
[385887082,1758097832297,-1200.0,0.00020999,2]
[385887083,1758097832306,-300.0,0.00020999,2]
[385887084,1758097832317,-12868.71644229,0.00021,5]
[385887085,1758097832343,-131.28355771,0.00021,5]
[385887086,1758097832352,-391.53127429,0.00022,5]
[385887087,1758097832449,-27518.33336578,0.00022,5]
[385887088,1758097832558,-2090.13535993,0.00022,5]
[385887089,1758097832567,-157.17,0.00022083,2]
[385887090,1758097832576,-420.0,0.00022842,2]
[385887091,1758097832586,-1680.0,0.00022951,2]
[385887092,1758097832595,-502.48836444,0.00023716,2]
[385887093,1758097832604,-1809.50264593,0.00023989,2]
[385887094,1758097832614,-375.0,0.00023998,2]
[385887095,1758097832624,-500.0,0.00023999,2]
[385887096,1758097832634,-500.0,0.00023999,2]
[385887097,1758097832644,-500.0,0.00023999,2]
[385887098,1758097832655,-500.0,0.00023999,2]
[385887099,1758097832665,-500.0,0.00023999,2]
[385887100,1758097832675,-500.0,0.00023999,2]
[385887101,1758097832684,-500.0,0.00023999,2]
[385887103,1758097832694,-500.0,0.00023999,2]
[385887105,1758097832704,-558.53159997,0.00023999,2]
[385887107,1758097832714,-500.0,0.00023999,2]
[385887109,1758097832724,-500.0,0.00023999,2]
[385887111,1758097832734,-500.0,0.00023999,2]
[385887113,1758097832744,-500.0,0.00023999,2]
[385887115,1758097832754,-500.0,0.00023999,2]
[385887116,1758097832763,-500.0,0.00023999,2]
[385887117,1758097832773,-500.0,0.00023999,2]
[385887120,1758097832783,-89.12069569,0.00023999,2]
[385887122,1758097832795,-410.87930431,0.00023999,2]
[385887124,1758097832805,-500.0,0.00023999,2]
[385887126,1758097832814,-500.0,0.00023999,2]
[385887128,1758097832824,-500.0,0.00023999,2]
[385887130,1758097832833,-500.0,0.00023999,2]
[385887132,1758097832843,-500.0,0.00023999,2]
[385887134,1758097832853,-500.0,0.00023999,2]
[385887136,1758097832863,-500.0,0.00023999,2]
[385887138,1758097832872,-500.0,0.00023999,2]
[385887140,1758097832882,-500.0,0.00023999,2]
[385887142,1758097832891,-477.25839699,0.00023999,2]
[385887144,1758097832901,-500.0,0.00023999,2]
[385887147,1758097832911,-500.0,0.00023999,2]
[385887149,1758097832921,-500.0,0.00023999,2]
[385887151,1758097832930,-500.0,0.00023999,2]
[385887153,1758097832940,-500.0,0.00023999,2]
[385887155,1758097832949,-650.0,0.00023999,2]
[385887157,1758097832959,-5000.00720986,0.00024,5]
[385887159,1758097832968,-303.12308945,0.000241,2]
[385887161,1758097832978,-250.0,0.00024292,2]
[385887163,1758097832987,-150.0,0.00024534,2]
[385887164,1758097832997,-150.00000001,0.00024534,2]
[385887165,1758097833007,-150.0,0.00024534,2]
[385887166,1758097833017,-152.43988676,0.00024534,2]